Workbook

Sheet Praćenje rezultata
B1: Ovde unesite rezultate
C3: Čas | D3: Tip | E3: Opis | F3: Rezultat
C4: Savremeni francuski | D4: Domaći zadatak | E4: Istorija Drugog svetskog rata | F4: 80%
C5: Napredno programiranje u Java jeziku | D5: Polugodište | F5: 75%
C6: Španski | D6: Domaći zadatak | F6: 50%
C7: Teorijska fizika | D7: Domaći zadatak | F7: 95%
C8: Savremeni francuski | D8: Domaći zadatak | E8: Istorija Prvog svetskog rata | F8: 90%
C9: Savremeni francuski | D9: Domaći zadatak | E9: Stranice 30 - 41 | F9: 80%
C10: Sastav | D10: Esej | E10: Esej o ubeđivanju | F10: 95%
C11: Matematika 1 | D11: Domaći zadatak | E11: Stranice 21 i 26 | F11: 80%
C12: Matematika 2 | D12: Domaći zadatak | E12: Stranice 15 i 18 | F12: 85%
C13: Matematika 1 | D13: Domaći zadatak | E13: Stranice 34 - 36 | F13: 80%
C14: Matematika 2 | D14: Test | F14: 95%

Sheet Vaš učinak
B1: Vaš učinak
C3: Ukupne vrednosti
C4: ="Časovi: "&SUM(tblClasses[Časovi za bodove]) -> Časovi: 24 | D4: =AVERAGE(D7:D31) -> 81% | E4: =AVERAGE(E7:E31) -> 2.71 | F4: =SUM(F7:F31) -> 2.63 | G4: =IFERROR(HLOOKUP(D4,lstGPAMapping,2),"") -> B-
C6: Predmeti | D6: % | E6: PROSEČNA OCENA | F6: Ponderisana prosečna ocena | G6: Slovo | H6: Opšti učinak
C7: =Izračunavanja!C6 -> Savremeni francuski | D7: =Izračunavanja!AL6 -> 83% | E7: =Izračunavanja!AM6 -> 3.00 | F7: =IFERROR(E7*Postavke!D9/SUM(tblClasses[Časovi za bodove]),"") -> 0.38 | G7: =Izračunavanja!AN6 -> B
C8: =Izračunavanja!C7 -> Teorijska fizika | D8: =Izračunavanja!AL7 -> 95% | E8: =Izračunavanja!AM7 -> 4.00 | F8: =IFERROR(E8*Postavke!D10/SUM(tblClasses[Časovi za bodove]),"") -> 0.50 | G8: =Izračunavanja!AN7 -> A
C9: =Izračunavanja!C8 -> Matematika 1 | D9: =Izračunavanja!AL8 -> 80% | E9: =Izračunavanja!AM8 -> 2.67 | F9: =IFERROR(E9*Postavke!D11/SUM(tblClasses[Časovi za bodove]),"") -> 0.45 | G9: =Izračunavanja!AN8 -> B-
C10: =Izračunavanja!C9 -> Matematika 2 | D10: =Izračunavanja!AL9 -> 89% | E10: =Izračunavanja!AM9 -> 3.33 | F10: =IFERROR(E10*Postavke!D12/SUM(tblClasses[Časovi za bodove]),"") -> 0.56 | G10: =Izračunavanja!AN9 -> B+
C11: =Izračunavanja!C10 -> Napredno programiranje u Java jeziku | D11: =Izračunavanja!AL10 -> 75% | E11: =Izračunavanja!AM10 -> 2.00 | F11: =IFERROR(E11*Postavke!D13/SUM(tblClasses[Časovi za bodove]),"") -> 0.42 | G11: =Izračunavanja!AN10 -> C
C12: =Izračunavanja!C11 -> Španski | D12: =Izračunavanja!AL11 -> 50% | E12: =Izračunavanja!AM11 -> 0.00 | F12: =IFERROR(E12*Postavke!D14/SUM(tblClasses[Časovi za bodove]),"") -> 0.00 | G12: =Izračunavanja!AN11 -> F
C13: =Izračunavanja!C12 -> Sastav | D13: =Izračunavanja!AL12 -> 95% | E13: =Izračunavanja!AM12 -> 4.00 | F13: =IFERROR(E13*Postavke!D15/SUM(tblClasses[Časovi za bodove]),"") -> 0.33 | G13: =Izračunavanja!AN12 -> A
C14: =Izračunavanja!C13 ->  | D14: =Izračunavanja!AL13 ->  | E14: =Izračunavanja!AM13 ->  | F14: =IFERROR(E14*Postavke!D16/SUM(tblClasses[Časovi za bodove]),"") ->  | G14: =Izračunavanja!AN13 -> 
C15: =Izračunavanja!C14 ->  | D15: =Izračunavanja!AL14 ->  | E15: =Izračunavanja!AM14 ->  | F15: =IFERROR(E15*Postavke!D17/SUM(tblClasses[Časovi za bodove]),"") ->  | G15: =Izračunavanja!AN14 -> 
C16: =Izračunavanja!C15 ->  | D16: =Izračunavanja!AL15 ->  | E16: =Izračunavanja!AM15 ->  | F16: =IFERROR(E16*Postavke!D18/SUM(tblClasses[Časovi za bodove]),"") ->  | G16: =Izračunavanja!AN15 -> 
C17: =Izračunavanja!C16 ->  | D17: =Izračunavanja!AL16 ->  | E17: =Izračunavanja!AM16 ->  | F17: =IFERROR(E17*Postavke!D19/SUM(tblClasses[Časovi za bodove]),"") ->  | G17: =Izračunavanja!AN16 -> 
C18: =Izračunavanja!C17 ->  | D18: =Izračunavanja!AL17 ->  | E18: =Izračunavanja!AM17 ->  | F18: =IFERROR(E18*Postavke!D20/SUM(tblClasses[Časovi za bodove]),"") ->  | G18: =Izračunavanja!AN17 -> 
C19: =Izračunavanja!C18 ->  | D19: =Izračunavanja!AL18 ->  | E19: =Izračunavanja!AM18 ->  | F19: =IFERROR(E19*Postavke!D21/SUM(tblClasses[Časovi za bodove]),"") ->  | G19: =Izračunavanja!AN18 -> 
C20: =Izračunavanja!C19 ->  | D20: =Izračunavanja!AL19 ->  | E20: =Izračunavanja!AM19 ->  | F20: =IFERROR(E20*Postavke!D22/SUM(tblClasses[Časovi za bodove]),"") ->  | G20: =Izračunavanja!AN19 -> 
C21: =Izračunavanja!C20 ->  | D21: =Izračunavanja!AL20 ->  | E21: =Izračunavanja!AM20 ->  | F21: =IFERROR(E21*Postavke!D23/SUM(tblClasses[Časovi za bodove]),"") ->  | G21: =Izračunavanja!AN20 -> 
C22: =Izračunavanja!C21 ->  | D22: =Izračunavanja!AL21 ->  | E22: =Izračunavanja!AM21 ->  | F22: =IFERROR(E22*Postavke!D24/SUM(tblClasses[Časovi za bodove]),"") ->  | G22: =Izračunavanja!AN21 -> 
C23: =Izračunavanja!C22 ->  | D23: =Izračunavanja!AL22 ->  | E23: =Izračunavanja!AM22 ->  | F23: =IFERROR(E23*Postavke!D25/SUM(tblClasses[Časovi za bodove]),"") ->  | G23: =Izračunavanja!AN22 -> 
C24: =Izračunavanja!C23 ->  | D24: =Izračunavanja!AL23 ->  | E24: =Izračunavanja!AM23 ->  | F24: =IFERROR(E24*Postavke!D26/SUM(tblClasses[Časovi za bodove]),"") ->  | G24: =Izračunavanja!AN23 -> 
C25: =Izračunavanja!C24 ->  | D25: =Izračunavanja!AL24 ->  | E25: =Izračunavanja!AM24 ->  | F25: =IFERROR(E25*Postavke!D27/SUM(tblClasses[Časovi za bodove]),"") ->  | G25: =Izračunavanja!AN24 -> 
C26: =Izračunavanja!C25 ->  | D26: =Izračunavanja!AL25 ->  | E26: =Izračunavanja!AM25 ->  | F26: =IFERROR(E26*Postavke!D28/SUM(tblClasses[Časovi za bodove]),"") ->  | G26: =Izračunavanja!AN25 -> 
C27: =Izračunavanja!C26 ->  | D27: =Izračunavanja!AL26 ->  | E27: =Izračunavanja!AM26 ->  | F27: =IFERROR(E27*Postavke!D29/SUM(tblClasses[Časovi za bodove]),"") ->  | G27: =Izračunavanja!AN26 -> 
C28: =Izračunavanja!C27 ->  | D28: =Izračunavanja!AL27 ->  | E28: =Izračunavanja!AM27 ->  | F28: =IFERROR(E28*Postavke!D30/SUM(tblClasses[Časovi za bodove]),"") ->  | G28: =Izračunavanja!AN27 -> 
C29: =Izračunavanja!C28 ->  | D29: =Izračunavanja!AL28 ->  | E29: =Izračunavanja!AM28 ->  | F29: =IFERROR(E29*Postavke!D31/SUM(tblClasses[Časovi za bodove]),"") ->  | G29: =Izračunavanja!AN28 -> 
C30: =Izračunavanja!C29 ->  | D30: =Izračunavanja!AL29 ->  | E30: =Izračunavanja!AM29 ->  | F30: =IFERROR(E30*Postavke!D32/SUM(tblClasses[Časovi za bodove]),"") ->  | G30: =Izračunavanja!AN29 -> 
C31: =Izračunavanja!C30 ->  | D31: =Izračunavanja!AL30 ->  | E31: =Izračunavanja!AM30 ->  | F31: =IFERROR(E31*Postavke!D33/SUM(tblClasses[Časovi za bodove]),"") ->  | G31: =Izračunavanja!AN30 -> 

Sheet Postavke
B1: Postavke
C2: Mapiranje rezultata i prosečnih ocena
C3: Procenat | D3: 0% | E3: 60% | F3: 63% | G3: 67% | H3: 70% | I3: 73% | J3: 77% | K3: 80% | L3: 83% | M3: 87% | N3: 90% | O3: 93% | P3: 97%
C4: Slovna ocena | D4: F | E4: D- | F4: D | G4: D+ | H4: C- | I4: C | J4: C+ | K4: B- | L4: B | M4: B+ | N4: A- | O4: A | P4: A+
C5: PROSEČNA OCENA | D5: 0 | E5: 0.67 | F5: 1 | G5: 1.33 | H5: 1.67 | I5: 2 | J5: 2.33 | K5: 2.67 | L5: 3 | M5: 3.33 | N5: 3.67 | O5: 4 | P5: 4
C7: Ponderisani rezultati do 25 predmeta
C8: Predmeti koje pohađate | D8: Časovi za bodove | E8: Domaći zadatak | F8: Esej | G8: Test | H8: Projekat | I8: Polugodište | J8: Završni ispit | K8: Ostalo | L8: % od ukupnog
C9: Savremeni francuski | D9: 3.0 | E9: 10% | F9: 15% | G9: 15% | H9: 10% | I9: 20% | J9: 30% | L9: =SUM(tblClasses[[#This Row],[Domaći zadatak]:[Ostalo]]) -> 100%
C10: Teorijska fizika | D10: 3.0 | E10: 15% | F10: 15% | G10: 10% | H10: 10% | I10: 15% | J10: 30% | K10: 5% | L10: =SUM(tblClasses[[#This Row],[Domaći zadatak]:[Ostalo]]) -> 100%
C11: Matematika 1 | D11: 4.0 | E11: 10% | F11: 15% | G11: 15% | H11: 10% | I11: 20% | J11: 30% | L11: =SUM(tblClasses[[#This Row],[Domaći zadatak]:[Ostalo]]) -> 100%
C12: Matematika 2 | D12: 4.0 | E12: 15% | F12: 15% | G12: 10% | H12: 10% | I12: 15% | J12: 30% | K12: 5% | L12: =SUM(tblClasses[[#This Row],[Domaći zadatak]:[Ostalo]]) -> 100%
C13: Napredno programiranje u Java jeziku | D13: 5.0 | E13: 15% | F13: 15% | G13: 10% | H13: 10% | I13: 20% | J13: 30% | L13: =SUM(tblClasses[[#This Row],[Domaći zadatak]:[Ostalo]]) -> 100%
C14: Španski | D14: 3.0 | E14: 10% | F14: 15% | G14: 17% | H14: 13% | I14: 20% | J14: 20% | K14: 5% | L14: =SUM(tblClasses[[#This Row],[Domaći zadatak]:[Ostalo]]) -> 100%
C15: Sastav | D15: 2.0 | E15: 15% | F15: 15% | G15: 12% | H15: 15% | I15: 15% | J15: 25% | K15: 3% | L15: =SUM(tblClasses[[#This Row],[Domaći zadatak]:[Ostalo]]) -> 100%

Sheet Izračunavanja (hidden)
B1: Izračunavanja
C2: Ovaj radni list obezbeđuje izračunavanje vaših ocena i prosečnih ocena i trebalo bi da ostane sakriven. Sve promene na ovom listu mogu dovesti do grešaka.
C4: Lista trenutnih časova | D4: Rezultati (od 1) | AC4: Izračunavanje ocena
C5: Čas | D5: 1 | E5: 2 | F5: 3 | G5: 4 | H5: 5 | I5: 6 | J5: 7 | K5: 8 | L5: 9 | M5: 10 | N5: 11 | O5: 12 | P5: 13 | Q5: 14 | R5: 15 | S5: 16 | T5: 17 | U5: 18 | V5: 19 | W5: 20 | X5: 21 | Y5: 22 | Z5: 23 | AA5: 24 | AB5: 25 | AC5: =tblClasses[[#Headers],[Domaći zadatak]] -> Domaći zadatak | AD5: =tblClasses[[#Headers],[Esej]] -> Esej | AE5: =tblClasses[[#Headers],[Test]] -> Test | AF5: =tblClasses[[#Headers],[Projekat]] -> Projekat | AG5: =tblClasses[[#Headers],[Polugodište]] -> Polugodište | AH5: =tblClasses[[#Headers],[Završni ispit]] -> Završni ispit | AI5: =tblClasses[[#Headers],[Ostalo]] -> Ostalo | AJ5: Ukupno | AK5: Ukupan broj mogućih bodova | AL5: Ukupno % | AM5: Ocena | AN5: Slovna ocena
C6: =IF(Postavke!C9="","",Postavke!C9) -> Savremeni francuski | D6: =IFERROR(INDEX(tblClassScores[],MATCH($C6:$C30&D$5:AB$5,Izračunavanja!$C$33:$C$657,0),4),"") -> 80% | E6: 90% | F6: 80% | AC6: =IFERROR(AVERAGEIFS(tblClassScores[Rezultat],tblClassScores[Čas],Izračunavanja!$C6,tblClassScores[Tip],Izračunavanja!AC$5)*Postavke!E9,"") -> 0.08333333333 | AD6: =IFERROR(AVERAGEIFS(tblClassScores[Rezultat],tblClassScores[Čas],Izračunavanja!$C6,tblClassScores[Tip],Izračunavanja!AD$5)*Postavke!F9,"") ->  | AE6: =IFERROR(AVERAGEIFS(tblClassScores[Rezultat],tblClassScores[Čas],Izračunavanja!$C6,tblClassScores[Tip],Izračunavanja!AE$5)*Postavke!G9,"") ->  | AF6: =IFERROR(AVERAGEIFS(tblClassScores[Rezultat],tblClassScores[Čas],Izračunavanja!$C6,tblClassScores[Tip],Izračunavanja!AF$5)*Postavke!H9,"") ->  | AG6: =IFERROR(AVERAGEIFS(tblClassScores[Rezultat],tblClassScores[Čas],Izračunavanja!$C6,tblClassScores[Tip],Izračunavanja!AG$5)*Postavke!I9,"") ->  | AH6: =IFERROR(AVERAGEIFS(tblClassScores[Rezultat],tblClassScores[Čas],Izračunavanja!$C6,tblClassScores[Tip],Izračunavanja!AH$5)*Postavke!J9,"") ->  | AI6: =IFERROR(AVERAGEIFS(tblClassScores[Rezultat],tblClassScores[Čas],Izračunavanja!$C6,tblClassScores[Tip],Izračunavanja!AI$5)*Postavke!K9,"") ->  | AJ6: =SUM(AC6:AI6) -> 0.08333333333 | AK6: =SUMIFS(Postavke!E9:K9,Izračunavanja!AC6:AI6,">0") -> 0.1 | AL6: =IFERROR(AJ6/AK6,"") -> 83% | AM6: =IFERROR(HLOOKUP(AL6,lstGPAMapping,3),"") -> 3 | AN6: =IFERROR(HLOOKUP(AL6,lstGPAMapping,2),"") -> B
C7: =IF(Postavke!C10="","",Postavke!C10) -> Teorijska fizika | D7: 95% | AC7: =IFERROR(AVERAGEIFS(tblClassScores[Rezultat],tblClassScores[Čas],Izračunavanja!$C7,tblClassScores[Tip],Izračunavanja!AC$5)*Postavke!E10,"") -> 0.1425 | AD7: =IFERROR(AVERAGEIFS(tblClassScores[Rezultat],tblClassScores[Čas],Izračunavanja!$C7,tblClassScores[Tip],Izračunavanja!AD$5)*Postavke!F10,"") ->  | AE7: =IFERROR(AVERAGEIFS(tblClassScores[Rezultat],tblClassScores[Čas],Izračunavanja!$C7,tblClassScores[Tip],Izračunavanja!AE$5)*Postavke!G10,"") ->  | AF7: =IFERROR(AVERAGEIFS(tblClassScores[Rezultat],tblClassScores[Čas],Izračunavanja!$C7,tblClassScores[Tip],Izračunavanja!AF$5)*Postavke!H10,"") ->  | AG7: =IFERROR(AVERAGEIFS(tblClassScores[Rezultat],tblClassScores[Čas],Izračunavanja!$C7,tblClassScores[Tip],Izračunavanja!AG$5)*Postavke!I10,"") ->  | AH7: =IFERROR(AVERAGEIFS(tblClassScores[Rezultat],tblClassScores[Čas],Izračunavanja!$C7,tblClassScores[Tip],Izračunavanja!AH$5)*Postavke!J10,"") ->  | AI7: =IFERROR(AVERAGEIFS(tblClassScores[Rezultat],tblClassScores[Čas],Izračunavanja!$C7,tblClassScores[Tip],Izračunavanja!AI$5)*Postavke!K10,"") ->  | AJ7: =SUM(AC7:AI7) -> 0.1425 | AK7: =SUMIFS(Postavke!E10:K10,Izračunavanja!AC7:AI7,">0") -> 0.15 | AL7: =IFERROR(AJ7/AK7,"") -> 95% | AM7: 4 | AN7: A
C8: =IF(Postavke!C11="","",Postavke!C11) -> Matematika 1 | D8: 80% | E8: 80% | AC8: =IFERROR(AVERAGEIFS(tblClassScores[Rezultat],tblClassScores[Čas],Izračunavanja!$C8,tblClassScores[Tip],Izračunavanja!AC$5)*Postavke!E11,"") -> 0.08 | AD8: =IFERROR(AVERAGEIFS(tblClassScores[Rezultat],tblClassScores[Čas],Izračunavanja!$C8,tblClassScores[Tip],Izračunavanja!AD$5)*Postavke!F11,"") ->  | AE8: =IFERROR(AVERAGEIFS(tblClassScores[Rezultat],tblClassScores[Čas],Izračunavanja!$C8,tblClassScores[Tip],Izračunavanja!AE$5)*Postavke!G11,"") ->  | AF8: =IFERROR(AVERAGEIFS(tblClassScores[Rezultat],tblClassScores[Čas],Izračunavanja!$C8,tblClassScores[Tip],Izračunavanja!AF$5)*Postavke!H11,"") ->  | AG8: =IFERROR(AVERAGEIFS(tblClassScores[Rezultat],tblClassScores[Čas],Izračunavanja!$C8,tblClassScores[Tip],Izračunavanja!AG$5)*Postavke!I11,"") ->  | AH8: =IFERROR(AVERAGEIFS(tblClassScores[Rezultat],tblClassScores[Čas],Izračunavanja!$C8,tblClassScores[Tip],Izračunavanja!AH$5)*Postavke!J11,"") ->  | AI8: =IFERROR(AVERAGEIFS(tblClassScores[Rezultat],tblClassScores[Čas],Izračunavanja!$C8,tblClassScores[Tip],Izračunavanja!AI$5)*Postavke!K11,"") ->  | AJ8: 0.08 | AK8: =SUMIFS(Postavke!E11:K11,Izračunavanja!AC8:AI8,">0") -> 0.1 | AL8: 80% | AM8: 2.67 | AN8: B-
C9: =IF(Postavke!C12="","",Postavke!C12) -> Matematika 2 | D9: 85% | E9: 95% | AC9: =IFERROR(AVERAGEIFS(tblClassScores[Rezultat],tblClassScores[Čas],Izračunavanja!$C9,tblClassScores[Tip],Izračunavanja!AC$5)*Postavke!E12,"") -> 0.1275 | AD9: =IFERROR(AVERAGEIFS(tblClassScores[Rezultat],tblClassScores[Čas],Izračunavanja!$C9,tblClassScores[Tip],Izračunavanja!AD$5)*Postavke!F12,"") ->  | AE9: =IFERROR(AVERAGEIFS(tblClassScores[Rezultat],tblClassScores[Čas],Izračunavanja!$C9,tblClassScores[Tip],Izračunavanja!AE$5)*Postavke!G12,"") -> 0.095 | AF9: =IFERROR(AVERAGEIFS(tblClassScores[Rezultat],tblClassScores[Čas],Izračunavanja!$C9,tblClassScores[Tip],Izračunavanja!AF$5)*Postavke!H12,"") ->  | AG9: =IFERROR(AVERAGEIFS(tblClassScores[Rezultat],tblClassScores[Čas],Izračunavanja!$C9,tblClassScores[Tip],Izračunavanja!AG$5)*Postavke!I12,"") ->  | AH9: =IFERROR(AVERAGEIFS(tblClassScores[Rezultat],tblClassScores[Čas],Izračunavanja!$C9,tblClassScores[Tip],Izračunavanja!AH$5)*Postavke!J12,"") ->  | AI9: =IFERROR(AVERAGEIFS(tblClassScores[Rezultat],tblClassScores[Čas],Izračunavanja!$C9,tblClassScores[Tip],Izračunavanja!AI$5)*Postavke!K12,"") ->  | AJ9: 0.2225 | AK9: =SUMIFS(Postavke!E12:K12,Izračunavanja!AC9:AI9,">0") -> 0.25 | AL9: 89% | AM9: 3.33 | AN9: B+
C10: =IF(Postavke!C13="","",Postavke!C13) -> Napredno programiranje u Java jeziku | D10: 75% | AC10: =IFERROR(AVERAGEIFS(tblClassScores[Rezultat],tblClassScores[Čas],Izračunavanja!$C10,tblClassScores[Tip],Izračunavanja!AC$5)*Postavke!E13,"") ->  | AD10: =IFERROR(AVERAGEIFS(tblClassScores[Rezultat],tblClassScores[Čas],Izračunavanja!$C10,tblClassScores[Tip],Izračunavanja!AD$5)*Postavke!F13,"") ->  | AE10: =IFERROR(AVERAGEIFS(tblClassScores[Rezultat],tblClassScores[Čas],Izračunavanja!$C10,tblClassScores[Tip],Izračunavanja!AE$5)*Postavke!G13,"") ->  | AF10: =IFERROR(AVERAGEIFS(tblClassScores[Rezultat],tblClassScores[Čas],Izračunavanja!$C10,tblClassScores[Tip],Izračunavanja!AF$5)*Postavke!H13,"") ->  | AG10: =IFERROR(AVERAGEIFS(tblClassScores[Rezultat],tblClassScores[Čas],Izračunavanja!$C10,tblClassScores[Tip],Izračunavanja!AG$5)*Postavke!I13,"") -> 0.15 | AH10: =IFERROR(AVERAGEIFS(tblClassScores[Rezultat],tblClassScores[Čas],Izračunavanja!$C10,tblClassScores[Tip],Izračunavanja!AH$5)*Postavke!J13,"") ->  | AI10: =IFERROR(AVERAGEIFS(tblClassScores[Rezultat],tblClassScores[Čas],Izračunavanja!$C10,tblClassScores[Tip],Izračunavanja!AI$5)*Postavke!K13,"") ->  | AJ10: 0.15 | AK10: =SUMIFS(Postavke!E13:K13,Izračunavanja!AC10:AI10,">0") -> 0.2 | AL10: 75% | AM10: 2 | AN10: C
C11: =IF(Postavke!C14="","",Postavke!C14) -> Španski | D11: 50% | AC11: =IFERROR(AVERAGEIFS(tblClassScores[Rezultat],tblClassScores[Čas],Izračunavanja!$C11,tblClassScores[Tip],Izračunavanja!AC$5)*Postavke!E14,"") -> 0.05 | AD11: =IFERROR(AVERAGEIFS(tblClassScores[Rezultat],tblClassScores[Čas],Izračunavanja!$C11,tblClassScores[Tip],Izračunavanja!AD$5)*Postavke!F14,"") ->  | AE11: =IFERROR(AVERAGEIFS(tblClassScores[Rezultat],tblClassScores[Čas],Izračunavanja!$C11,tblClassScores[Tip],Izračunavanja!AE$5)*Postavke!G14,"") ->  | AF11: =IFERROR(AVERAGEIFS(tblClassScores[Rezultat],tblClassScores[Čas],Izračunavanja!$C11,tblClassScores[Tip],Izračunavanja!AF$5)*Postavke!H14,"") ->  | AG11: =IFERROR(AVERAGEIFS(tblClassScores[Rezultat],tblClassScores[Čas],Izračunavanja!$C11,tblClassScores[Tip],Izračunavanja!AG$5)*Postavke!I14,"") ->  | AH11: =IFERROR(AVERAGEIFS(tblClassScores[Rezultat],tblClassScores[Čas],Izračunavanja!$C11,tblClassScores[Tip],Izračunavanja!AH$5)*Postavke!J14,"") ->  | AI11: =IFERROR(AVERAGEIFS(tblClassScores[Rezultat],tblClassScores[Čas],Izračunavanja!$C11,tblClassScores[Tip],Izračunavanja!AI$5)*Postavke!K14,"") ->  | AJ11: 0.05 | AK11: =SUMIFS(Postavke!E14:K14,Izračunavanja!AC11:AI11,">0") -> 0.1 | AL11: 50% | AM11: 0 | AN11: F
C12: =IF(Postavke!C15="","",Postavke!C15) -> Sastav | D12: 95% | AC12: =IFERROR(AVERAGEIFS(tblClassScores[Rezultat],tblClassScores[Čas],Izračunavanja!$C12,tblClassScores[Tip],Izračunavanja!AC$5)*Postavke!E15,"") ->  | AD12: =IFERROR(AVERAGEIFS(tblClassScores[Rezultat],tblClassScores[Čas],Izračunavanja!$C12,tblClassScores[Tip],Izračunavanja!AD$5)*Postavke!F15,"") -> 0.1425 | AE12: =IFERROR(AVERAGEIFS(tblClassScores[Rezultat],tblClassScores[Čas],Izračunavanja!$C12,tblClassScores[Tip],Izračunavanja!AE$5)*Postavke!G15,"") ->  | AF12: =IFERROR(AVERAGEIFS(tblClassScores[Rezultat],tblClassScores[Čas],Izračunavanja!$C12,tblClassScores[Tip],Izračunavanja!AF$5)*Postavke!H15,"") ->  | AG12: =IFERROR(AVERAGEIFS(tblClassScores[Rezultat],tblClassScores[Čas],Izračunavanja!$C12,tblClassScores[Tip],Izračunavanja!AG$5)*Postavke!I15,"") ->  | AH12: =IFERROR(AVERAGEIFS(tblClassScores[Rezultat],tblClassScores[Čas],Izračunavanja!$C12,tblClassScores[Tip],Izračunavanja!AH$5)*Postavke!J15,"") ->  | AI12: =IFERROR(AVERAGEIFS(tblClassScores[Rezultat],tblClassScores[Čas],Izračunavanja!$C12,tblClassScores[Tip],Izračunavanja!AI$5)*Postavke!K15,"") ->  | AJ12: 0.1425 | AK12: =SUMIFS(Postavke!E15:K15,Izračunavanja!AC12:AI12,">0") -> 0.15 | AL12: 95% | AM12: 4 | AN12: A
C13: =IF(Postavke!C16="","",Postavke!C16) ->  | AC13: =IFERROR(AVERAGEIFS(tblClassScores[Rezultat],tblClassScores[Čas],Izračunavanja!$C13,tblClassScores[Tip],Izračunavanja!AC$5)*Postavke!E16,"") ->  | AD13: =IFERROR(AVERAGEIFS(tblClassScores[Rezultat],tblClassScores[Čas],Izračunavanja!$C13,tblClassScores[Tip],Izračunavanja!AD$5)*Postavke!F16,"") ->  | AE13: =IFERROR(AVERAGEIFS(tblClassScores[Rezultat],tblClassScores[Čas],Izračunavanja!$C13,tblClassScores[Tip],Izračunavanja!AE$5)*Postavke!G16,"") ->  | AF13: =IFERROR(AVERAGEIFS(tblClassScores[Rezultat],tblClassScores[Čas],Izračunavanja!$C13,tblClassScores[Tip],Izračunavanja!AF$5)*Postavke!H16,"") ->  | AG13: =IFERROR(AVERAGEIFS(tblClassScores[Rezultat],tblClassScores[Čas],Izračunavanja!$C13,tblClassScores[Tip],Izračunavanja!AG$5)*Postavke!I16,"") ->  | AH13: =IFERROR(AVERAGEIFS(tblClassScores[Rezultat],tblClassScores[Čas],Izračunavanja!$C13,tblClassScores[Tip],Izračunavanja!AH$5)*Postavke!J16,"") ->  | AI13: =IFERROR(AVERAGEIFS(tblClassScores[Rezultat],tblClassScores[Čas],Izračunavanja!$C13,tblClassScores[Tip],Izračunavanja!AI$5)*Postavke!K16,"") ->  | AJ13: =SUM(AC13:AI13) -> 0 | AK13: =SUMIFS(Postavke!E16:K16,Izračunavanja!AC13:AI13,">0") -> 0 | AL13: =IFERROR(AJ13/AK13,"") -> 
C14: =IF(Postavke!C17="","",Postavke!C17) ->  | AC14: =IFERROR(AVERAGEIFS(tblClassScores[Rezultat],tblClassScores[Čas],Izračunavanja!$C14,tblClassScores[Tip],Izračunavanja!AC$5)*Postavke!E17,"") ->  | AD14: =IFERROR(AVERAGEIFS(tblClassScores[Rezultat],tblClassScores[Čas],Izračunavanja!$C14,tblClassScores[Tip],Izračunavanja!AD$5)*Postavke!F17,"") ->  | AE14: =IFERROR(AVERAGEIFS(tblClassScores[Rezultat],tblClassScores[Čas],Izračunavanja!$C14,tblClassScores[Tip],Izračunavanja!AE$5)*Postavke!G17,"") ->  | AF14: =IFERROR(AVERAGEIFS(tblClassScores[Rezultat],tblClassScores[Čas],Izračunavanja!$C14,tblClassScores[Tip],Izračunavanja!AF$5)*Postavke!H17,"") ->  | AG14: =IFERROR(AVERAGEIFS(tblClassScores[Rezultat],tblClassScores[Čas],Izračunavanja!$C14,tblClassScores[Tip],Izračunavanja!AG$5)*Postavke!I17,"") ->  | AH14: =IFERROR(AVERAGEIFS(tblClassScores[Rezultat],tblClassScores[Čas],Izračunavanja!$C14,tblClassScores[Tip],Izračunavanja!AH$5)*Postavke!J17,"") ->  | AI14: =IFERROR(AVERAGEIFS(tblClassScores[Rezultat],tblClassScores[Čas],Izračunavanja!$C14,tblClassScores[Tip],Izračunavanja!AI$5)*Postavke!K17,"") ->  | AJ14: 0 | AK14: =SUMIFS(Postavke!E17:K17,Izračunavanja!AC14:AI14,">0") -> 0
C15: =IF(Postavke!C18="","",Postavke!C18) ->  | AC15: =IFERROR(AVERAGEIFS(tblClassScores[Rezultat],tblClassScores[Čas],Izračunavanja!$C15,tblClassScores[Tip],Izračunavanja!AC$5)*Postavke!E18,"") ->  | AD15: =IFERROR(AVERAGEIFS(tblClassScores[Rezultat],tblClassScores[Čas],Izračunavanja!$C15,tblClassScores[Tip],Izračunavanja!AD$5)*Postavke!F18,"") ->  | AE15: =IFERROR(AVERAGEIFS(tblClassScores[Rezultat],tblClassScores[Čas],Izračunavanja!$C15,tblClassScores[Tip],Izračunavanja!AE$5)*Postavke!G18,"") ->  | AF15: =IFERROR(AVERAGEIFS(tblClassScores[Rezultat],tblClassScores[Čas],Izračunavanja!$C15,tblClassScores[Tip],Izračunavanja!AF$5)*Postavke!H18,"") ->  | AG15: =IFERROR(AVERAGEIFS(tblClassScores[Rezultat],tblClassScores[Čas],Izračunavanja!$C15,tblClassScores[Tip],Izračunavanja!AG$5)*Postavke!I18,"") ->  | AH15: =IFERROR(AVERAGEIFS(tblClassScores[Rezultat],tblClassScores[Čas],Izračunavanja!$C15,tblClassScores[Tip],Izračunavanja!AH$5)*Postavke!J18,"") ->  | AI15: =IFERROR(AVERAGEIFS(tblClassScores[Rezultat],tblClassScores[Čas],Izračunavanja!$C15,tblClassScores[Tip],Izračunavanja!AI$5)*Postavke!K18,"") ->  | AJ15: 0 | AK15: =SUMIFS(Postavke!E18:K18,Izračunavanja!AC15:AI15,">0") -> 0
C16: =IF(Postavke!C19="","",Postavke!C19) ->  | AC16: =IFERROR(AVERAGEIFS(tblClassScores[Rezultat],tblClassScores[Čas],Izračunavanja!$C16,tblClassScores[Tip],Izračunavanja!AC$5)*Postavke!E19,"") ->  | AD16: =IFERROR(AVERAGEIFS(tblClassScores[Rezultat],tblClassScores[Čas],Izračunavanja!$C16,tblClassScores[Tip],Izračunavanja!AD$5)*Postavke!F19,"") ->  | AE16: =IFERROR(AVERAGEIFS(tblClassScores[Rezultat],tblClassScores[Čas],Izračunavanja!$C16,tblClassScores[Tip],Izračunavanja!AE$5)*Postavke!G19,"") ->  | AF16: =IFERROR(AVERAGEIFS(tblClassScores[Rezultat],tblClassScores[Čas],Izračunavanja!$C16,tblClassScores[Tip],Izračunavanja!AF$5)*Postavke!H19,"") ->  | AG16: =IFERROR(AVERAGEIFS(tblClassScores[Rezultat],tblClassScores[Čas],Izračunavanja!$C16,tblClassScores[Tip],Izračunavanja!AG$5)*Postavke!I19,"") ->  | AH16: =IFERROR(AVERAGEIFS(tblClassScores[Rezultat],tblClassScores[Čas],Izračunavanja!$C16,tblClassScores[Tip],Izračunavanja!AH$5)*Postavke!J19,"") ->  | AI16: =IFERROR(AVERAGEIFS(tblClassScores[Rezultat],tblClassScores[Čas],Izračunavanja!$C16,tblClassScores[Tip],Izračunavanja!AI$5)*Postavke!K19,"") ->  | AJ16: 0 | AK16: =SUMIFS(Postavke!E19:K19,Izračunavanja!AC16:AI16,">0") -> 0
C17: =IF(Postavke!C20="","",Postavke!C20) ->  | AC17: =IFERROR(AVERAGEIFS(tblClassScores[Rezultat],tblClassScores[Čas],Izračunavanja!$C17,tblClassScores[Tip],Izračunavanja!AC$5)*Postavke!E20,"") ->  | AD17: =IFERROR(AVERAGEIFS(tblClassScores[Rezultat],tblClassScores[Čas],Izračunavanja!$C17,tblClassScores[Tip],Izračunavanja!AD$5)*Postavke!F20,"") ->  | AE17: =IFERROR(AVERAGEIFS(tblClassScores[Rezultat],tblClassScores[Čas],Izračunavanja!$C17,tblClassScores[Tip],Izračunavanja!AE$5)*Postavke!G20,"") ->  | AF17: =IFERROR(AVERAGEIFS(tblClassScores[Rezultat],tblClassScores[Čas],Izračunavanja!$C17,tblClassScores[Tip],Izračunavanja!AF$5)*Postavke!H20,"") ->  | AG17: =IFERROR(AVERAGEIFS(tblClassScores[Rezultat],tblClassScores[Čas],Izračunavanja!$C17,tblClassScores[Tip],Izračunavanja!AG$5)*Postavke!I20,"") ->  | AH17: =IFERROR(AVERAGEIFS(tblClassScores[Rezultat],tblClassScores[Čas],Izračunavanja!$C17,tblClassScores[Tip],Izračunavanja!AH$5)*Postavke!J20,"") ->  | AI17: =IFERROR(AVERAGEIFS(tblClassScores[Rezultat],tblClassScores[Čas],Izračunavanja!$C17,tblClassScores[Tip],Izračunavanja!AI$5)*Postavke!K20,"") ->  | AJ17: 0 | AK17: =SUMIFS(Postavke!E20:K20,Izračunavanja!AC17:AI17,">0") -> 0
C18: =IF(Postavke!C21="","",Postavke!C21) ->  | AC18: =IFERROR(AVERAGEIFS(tblClassScores[Rezultat],tblClassScores[Čas],Izračunavanja!$C18,tblClassScores[Tip],Izračunavanja!AC$5)*Postavke!E21,"") ->  | AD18: =IFERROR(AVERAGEIFS(tblClassScores[Rezultat],tblClassScores[Čas],Izračunavanja!$C18,tblClassScores[Tip],Izračunavanja!AD$5)*Postavke!F21,"") ->  | AE18: =IFERROR(AVERAGEIFS(tblClassScores[Rezultat],tblClassScores[Čas],Izračunavanja!$C18,tblClassScores[Tip],Izračunavanja!AE$5)*Postavke!G21,"") ->  | AF18: =IFERROR(AVERAGEIFS(tblClassScores[Rezultat],tblClassScores[Čas],Izračunavanja!$C18,tblClassScores[Tip],Izračunavanja!AF$5)*Postavke!H21,"") ->  | AG18: =IFERROR(AVERAGEIFS(tblClassScores[Rezultat],tblClassScores[Čas],Izračunavanja!$C18,tblClassScores[Tip],Izračunavanja!AG$5)*Postavke!I21,"") ->  | AH18: =IFERROR(AVERAGEIFS(tblClassScores[Rezultat],tblClassScores[Čas],Izračunavanja!$C18,tblClassScores[Tip],Izračunavanja!AH$5)*Postavke!J21,"") ->  | AI18: =IFERROR(AVERAGEIFS(tblClassScores[Rezultat],tblClassScores[Čas],Izračunavanja!$C18,tblClassScores[Tip],Izračunavanja!AI$5)*Postavke!K21,"") ->  | AJ18: 0 | AK18: =SUMIFS(Postavke!E21:K21,Izračunavanja!AC18:AI18,">0") -> 0
C19: =IF(Postavke!C22="","",Postavke!C22) ->  | AC19: =IFERROR(AVERAGEIFS(tblClassScores[Rezultat],tblClassScores[Čas],Izračunavanja!$C19,tblClassScores[Tip],Izračunavanja!AC$5)*Postavke!E22,"") ->  | AD19: =IFERROR(AVERAGEIFS(tblClassScores[Rezultat],tblClassScores[Čas],Izračunavanja!$C19,tblClassScores[Tip],Izračunavanja!AD$5)*Postavke!F22,"") ->  | AE19: =IFERROR(AVERAGEIFS(tblClassScores[Rezultat],tblClassScores[Čas],Izračunavanja!$C19,tblClassScores[Tip],Izračunavanja!AE$5)*Postavke!G22,"") ->  | AF19: =IFERROR(AVERAGEIFS(tblClassScores[Rezultat],tblClassScores[Čas],Izračunavanja!$C19,tblClassScores[Tip],Izračunavanja!AF$5)*Postavke!H22,"") ->  | AG19: =IFERROR(AVERAGEIFS(tblClassScores[Rezultat],tblClassScores[Čas],Izračunavanja!$C19,tblClassScores[Tip],Izračunavanja!AG$5)*Postavke!I22,"") ->  | AH19: =IFERROR(AVERAGEIFS(tblClassScores[Rezultat],tblClassScores[Čas],Izračunavanja!$C19,tblClassScores[Tip],Izračunavanja!AH$5)*Postavke!J22,"") ->  | AI19: =IFERROR(AVERAGEIFS(tblClassScores[Rezultat],tblClassScores[Čas],Izračunavanja!$C19,tblClassScores[Tip],Izračunavanja!AI$5)*Postavke!K22,"") ->  | AJ19: 0 | AK19: =SUMIFS(Postavke!E22:K22,Izračunavanja!AC19:AI19,">0") -> 0
C20: =IF(Postavke!C23="","",Postavke!C23) ->  | AC20: =IFERROR(AVERAGEIFS(tblClassScores[Rezultat],tblClassScores[Čas],Izračunavanja!$C20,tblClassScores[Tip],Izračunavanja!AC$5)*Postavke!E23,"") ->  | AD20: =IFERROR(AVERAGEIFS(tblClassScores[Rezultat],tblClassScores[Čas],Izračunavanja!$C20,tblClassScores[Tip],Izračunavanja!AD$5)*Postavke!F23,"") ->  | AE20: =IFERROR(AVERAGEIFS(tblClassScores[Rezultat],tblClassScores[Čas],Izračunavanja!$C20,tblClassScores[Tip],Izračunavanja!AE$5)*Postavke!G23,"") ->  | AF20: =IFERROR(AVERAGEIFS(tblClassScores[Rezultat],tblClassScores[Čas],Izračunavanja!$C20,tblClassScores[Tip],Izračunavanja!AF$5)*Postavke!H23,"") ->  | AG20: =IFERROR(AVERAGEIFS(tblClassScores[Rezultat],tblClassScores[Čas],Izračunavanja!$C20,tblClassScores[Tip],Izračunavanja!AG$5)*Postavke!I23,"") ->  | AH20: =IFERROR(AVERAGEIFS(tblClassScores[Rezultat],tblClassScores[Čas],Izračunavanja!$C20,tblClassScores[Tip],Izračunavanja!AH$5)*Postavke!J23,"") ->  | AI20: =IFERROR(AVERAGEIFS(tblClassScores[Rezultat],tblClassScores[Čas],Izračunavanja!$C20,tblClassScores[Tip],Izračunavanja!AI$5)*Postavke!K23,"") ->  | AJ20: 0 | AK20: =SUMIFS(Postavke!E23:K23,Izračunavanja!AC20:AI20,">0") -> 0
C21: =IF(Postavke!C24="","",Postavke!C24) ->  | AC21: =IFERROR(AVERAGEIFS(tblClassScores[Rezultat],tblClassScores[Čas],Izračunavanja!$C21,tblClassScores[Tip],Izračunavanja!AC$5)*Postavke!E24,"") ->  | AD21: =IFERROR(AVERAGEIFS(tblClassScores[Rezultat],tblClassScores[Čas],Izračunavanja!$C21,tblClassScores[Tip],Izračunavanja!AD$5)*Postavke!F24,"") ->  | AE21: =IFERROR(AVERAGEIFS(tblClassScores[Rezultat],tblClassScores[Čas],Izračunavanja!$C21,tblClassScores[Tip],Izračunavanja!AE$5)*Postavke!G24,"") ->  | AF21: =IFERROR(AVERAGEIFS(tblClassScores[Rezultat],tblClassScores[Čas],Izračunavanja!$C21,tblClassScores[Tip],Izračunavanja!AF$5)*Postavke!H24,"") ->  | AG21: =IFERROR(AVERAGEIFS(tblClassScores[Rezultat],tblClassScores[Čas],Izračunavanja!$C21,tblClassScores[Tip],Izračunavanja!AG$5)*Postavke!I24,"") ->  | AH21: =IFERROR(AVERAGEIFS(tblClassScores[Rezultat],tblClassScores[Čas],Izračunavanja!$C21,tblClassScores[Tip],Izračunavanja!AH$5)*Postavke!J24,"") ->  | AI21: =IFERROR(AVERAGEIFS(tblClassScores[Rezultat],tblClassScores[Čas],Izračunavanja!$C21,tblClassScores[Tip],Izračunavanja!AI$5)*Postavke!K24,"") ->  | AJ21: 0 | AK21: =SUMIFS(Postavke!E24:K24,Izračunavanja!AC21:AI21,">0") -> 0
C22: =IF(Postavke!C25="","",Postavke!C25) ->  | AC22: =IFERROR(AVERAGEIFS(tblClassScores[Rezultat],tblClassScores[Čas],Izračunavanja!$C22,tblClassScores[Tip],Izračunavanja!AC$5)*Postavke!E25,"") ->  | AD22: =IFERROR(AVERAGEIFS(tblClassScores[Rezultat],tblClassScores[Čas],Izračunavanja!$C22,tblClassScores[Tip],Izračunavanja!AD$5)*Postavke!F25,"") ->  | AE22: =IFERROR(AVERAGEIFS(tblClassScores[Rezultat],tblClassScores[Čas],Izračunavanja!$C22,tblClassScores[Tip],Izračunavanja!AE$5)*Postavke!G25,"") ->  | AF22: =IFERROR(AVERAGEIFS(tblClassScores[Rezultat],tblClassScores[Čas],Izračunavanja!$C22,tblClassScores[Tip],Izračunavanja!AF$5)*Postavke!H25,"") ->  | AG22: =IFERROR(AVERAGEIFS(tblClassScores[Rezultat],tblClassScores[Čas],Izračunavanja!$C22,tblClassScores[Tip],Izračunavanja!AG$5)*Postavke!I25,"") ->  | AH22: =IFERROR(AVERAGEIFS(tblClassScores[Rezultat],tblClassScores[Čas],Izračunavanja!$C22,tblClassScores[Tip],Izračunavanja!AH$5)*Postavke!J25,"") ->  | AI22: =IFERROR(AVERAGEIFS(tblClassScores[Rezultat],tblClassScores[Čas],Izračunavanja!$C22,tblClassScores[Tip],Izračunavanja!AI$5)*Postavke!K25,"") ->  | AJ22: 0 | AK22: =SUMIFS(Postavke!E25:K25,Izračunavanja!AC22:AI22,">0") -> 0
C23: =IF(Postavke!C26="","",Postavke!C26) ->  | AC23: =IFERROR(AVERAGEIFS(tblClassScores[Rezultat],tblClassScores[Čas],Izračunavanja!$C23,tblClassScores[Tip],Izračunavanja!AC$5)*Postavke!E26,"") ->  | AD23: =IFERROR(AVERAGEIFS(tblClassScores[Rezultat],tblClassScores[Čas],Izračunavanja!$C23,tblClassScores[Tip],Izračunavanja!AD$5)*Postavke!F26,"") ->  | AE23: =IFERROR(AVERAGEIFS(tblClassScores[Rezultat],tblClassScores[Čas],Izračunavanja!$C23,tblClassScores[Tip],Izračunavanja!AE$5)*Postavke!G26,"") ->  | AF23: =IFERROR(AVERAGEIFS(tblClassScores[Rezultat],tblClassScores[Čas],Izračunavanja!$C23,tblClassScores[Tip],Izračunavanja!AF$5)*Postavke!H26,"") ->  | AG23: =IFERROR(AVERAGEIFS(tblClassScores[Rezultat],tblClassScores[Čas],Izračunavanja!$C23,tblClassScores[Tip],Izračunavanja!AG$5)*Postavke!I26,"") ->  | AH23: =IFERROR(AVERAGEIFS(tblClassScores[Rezultat],tblClassScores[Čas],Izračunavanja!$C23,tblClassScores[Tip],Izračunavanja!AH$5)*Postavke!J26,"") ->  | AI23: =IFERROR(AVERAGEIFS(tblClassScores[Rezultat],tblClassScores[Čas],Izračunavanja!$C23,tblClassScores[Tip],Izračunavanja!AI$5)*Postavke!K26,"") ->  | AJ23: 0 | AK23: =SUMIFS(Postavke!E26:K26,Izračunavanja!AC23:AI23,">0") -> 0
C24: =IF(Postavke!C27="","",Postavke!C27) ->  | AC24: =IFERROR(AVERAGEIFS(tblClassScores[Rezultat],tblClassScores[Čas],Izračunavanja!$C24,tblClassScores[Tip],Izračunavanja!AC$5)*Postavke!E27,"") ->  | AD24: =IFERROR(AVERAGEIFS(tblClassScores[Rezultat],tblClassScores[Čas],Izračunavanja!$C24,tblClassScores[Tip],Izračunavanja!AD$5)*Postavke!F27,"") ->  | AE24: =IFERROR(AVERAGEIFS(tblClassScores[Rezultat],tblClassScores[Čas],Izračunavanja!$C24,tblClassScores[Tip],Izračunavanja!AE$5)*Postavke!G27,"") ->  | AF24: =IFERROR(AVERAGEIFS(tblClassScores[Rezultat],tblClassScores[Čas],Izračunavanja!$C24,tblClassScores[Tip],Izračunavanja!AF$5)*Postavke!H27,"") ->  | AG24: =IFERROR(AVERAGEIFS(tblClassScores[Rezultat],tblClassScores[Čas],Izračunavanja!$C24,tblClassScores[Tip],Izračunavanja!AG$5)*Postavke!I27,"") ->  | AH24: =IFERROR(AVERAGEIFS(tblClassScores[Rezultat],tblClassScores[Čas],Izračunavanja!$C24,tblClassScores[Tip],Izračunavanja!AH$5)*Postavke!J27,"") ->  | AI24: =IFERROR(AVERAGEIFS(tblClassScores[Rezultat],tblClassScores[Čas],Izračunavanja!$C24,tblClassScores[Tip],Izračunavanja!AI$5)*Postavke!K27,"") ->  | AJ24: 0 | AK24: =SUMIFS(Postavke!E27:K27,Izračunavanja!AC24:AI24,">0") -> 0
C25: =IF(Postavke!C28="","",Postavke!C28) ->  | AC25: =IFERROR(AVERAGEIFS(tblClassScores[Rezultat],tblClassScores[Čas],Izračunavanja!$C25,tblClassScores[Tip],Izračunavanja!AC$5)*Postavke!E28,"") ->  | AD25: =IFERROR(AVERAGEIFS(tblClassScores[Rezultat],tblClassScores[Čas],Izračunavanja!$C25,tblClassScores[Tip],Izračunavanja!AD$5)*Postavke!F28,"") ->  | AE25: =IFERROR(AVERAGEIFS(tblClassScores[Rezultat],tblClassScores[Čas],Izračunavanja!$C25,tblClassScores[Tip],Izračunavanja!AE$5)*Postavke!G28,"") ->  | AF25: =IFERROR(AVERAGEIFS(tblClassScores[Rezultat],tblClassScores[Čas],Izračunavanja!$C25,tblClassScores[Tip],Izračunavanja!AF$5)*Postavke!H28,"") ->  | AG25: =IFERROR(AVERAGEIFS(tblClassScores[Rezultat],tblClassScores[Čas],Izračunavanja!$C25,tblClassScores[Tip],Izračunavanja!AG$5)*Postavke!I28,"") ->  | AH25: =IFERROR(AVERAGEIFS(tblClassScores[Rezultat],tblClassScores[Čas],Izračunavanja!$C25,tblClassScores[Tip],Izračunavanja!AH$5)*Postavke!J28,"") ->  | AI25: =IFERROR(AVERAGEIFS(tblClassScores[Rezultat],tblClassScores[Čas],Izračunavanja!$C25,tblClassScores[Tip],Izračunavanja!AI$5)*Postavke!K28,"") ->  | AJ25: 0 | AK25: =SUMIFS(Postavke!E28:K28,Izračunavanja!AC25:AI25,">0") -> 0
C26: =IF(Postavke!C29="","",Postavke!C29) ->  | AC26: =IFERROR(AVERAGEIFS(tblClassScores[Rezultat],tblClassScores[Čas],Izračunavanja!$C26,tblClassScores[Tip],Izračunavanja!AC$5)*Postavke!E29,"") ->  | AD26: =IFERROR(AVERAGEIFS(tblClassScores[Rezultat],tblClassScores[Čas],Izračunavanja!$C26,tblClassScores[Tip],Izračunavanja!AD$5)*Postavke!F29,"") ->  | AE26: =IFERROR(AVERAGEIFS(tblClassScores[Rezultat],tblClassScores[Čas],Izračunavanja!$C26,tblClassScores[Tip],Izračunavanja!AE$5)*Postavke!G29,"") ->  | AF26: =IFERROR(AVERAGEIFS(tblClassScores[Rezultat],tblClassScores[Čas],Izračunavanja!$C26,tblClassScores[Tip],Izračunavanja!AF$5)*Postavke!H29,"") ->  | AG26: =IFERROR(AVERAGEIFS(tblClassScores[Rezultat],tblClassScores[Čas],Izračunavanja!$C26,tblClassScores[Tip],Izračunavanja!AG$5)*Postavke!I29,"") ->  | AH26: =IFERROR(AVERAGEIFS(tblClassScores[Rezultat],tblClassScores[Čas],Izračunavanja!$C26,tblClassScores[Tip],Izračunavanja!AH$5)*Postavke!J29,"") ->  | AI26: =IFERROR(AVERAGEIFS(tblClassScores[Rezultat],tblClassScores[Čas],Izračunavanja!$C26,tblClassScores[Tip],Izračunavanja!AI$5)*Postavke!K29,"") ->  | AJ26: 0 | AK26: =SUMIFS(Postavke!E29:K29,Izračunavanja!AC26:AI26,">0") -> 0
C27: =IF(Postavke!C30="","",Postavke!C30) ->  | AC27: =IFERROR(AVERAGEIFS(tblClassScores[Rezultat],tblClassScores[Čas],Izračunavanja!$C27,tblClassScores[Tip],Izračunavanja!AC$5)*Postavke!E30,"") ->  | AD27: =IFERROR(AVERAGEIFS(tblClassScores[Rezultat],tblClassScores[Čas],Izračunavanja!$C27,tblClassScores[Tip],Izračunavanja!AD$5)*Postavke!F30,"") ->  | AE27: =IFERROR(AVERAGEIFS(tblClassScores[Rezultat],tblClassScores[Čas],Izračunavanja!$C27,tblClassScores[Tip],Izračunavanja!AE$5)*Postavke!G30,"") ->  | AF27: =IFERROR(AVERAGEIFS(tblClassScores[Rezultat],tblClassScores[Čas],Izračunavanja!$C27,tblClassScores[Tip],Izračunavanja!AF$5)*Postavke!H30,"") ->  | AG27: =IFERROR(AVERAGEIFS(tblClassScores[Rezultat],tblClassScores[Čas],Izračunavanja!$C27,tblClassScores[Tip],Izračunavanja!AG$5)*Postavke!I30,"") ->  | AH27: =IFERROR(AVERAGEIFS(tblClassScores[Rezultat],tblClassScores[Čas],Izračunavanja!$C27,tblClassScores[Tip],Izračunavanja!AH$5)*Postavke!J30,"") ->  | AI27: =IFERROR(AVERAGEIFS(tblClassScores[Rezultat],tblClassScores[Čas],Izračunavanja!$C27,tblClassScores[Tip],Izračunavanja!AI$5)*Postavke!K30,"") ->  | AJ27: 0 | AK27: =SUMIFS(Postavke!E30:K30,Izračunavanja!AC27:AI27,">0") -> 0
C28: =IF(Postavke!C31="","",Postavke!C31) ->  | AC28: =IFERROR(AVERAGEIFS(tblClassScores[Rezultat],tblClassScores[Čas],Izračunavanja!$C28,tblClassScores[Tip],Izračunavanja!AC$5)*Postavke!E31,"") ->  | AD28: =IFERROR(AVERAGEIFS(tblClassScores[Rezultat],tblClassScores[Čas],Izračunavanja!$C28,tblClassScores[Tip],Izračunavanja!AD$5)*Postavke!F31,"") ->  | AE28: =IFERROR(AVERAGEIFS(tblClassScores[Rezultat],tblClassScores[Čas],Izračunavanja!$C28,tblClassScores[Tip],Izračunavanja!AE$5)*Postavke!G31,"") ->  | AF28: =IFERROR(AVERAGEIFS(tblClassScores[Rezultat],tblClassScores[Čas],Izračunavanja!$C28,tblClassScores[Tip],Izračunavanja!AF$5)*Postavke!H31,"") ->  | AG28: =IFERROR(AVERAGEIFS(tblClassScores[Rezultat],tblClassScores[Čas],Izračunavanja!$C28,tblClassScores[Tip],Izračunavanja!AG$5)*Postavke!I31,"") ->  | AH28: =IFERROR(AVERAGEIFS(tblClassScores[Rezultat],tblClassScores[Čas],Izračunavanja!$C28,tblClassScores[Tip],Izračunavanja!AH$5)*Postavke!J31,"") ->  | AI28: =IFERROR(AVERAGEIFS(tblClassScores[Rezultat],tblClassScores[Čas],Izračunavanja!$C28,tblClassScores[Tip],Izračunavanja!AI$5)*Postavke!K31,"") ->  | AJ28: 0 | AK28: =SUMIFS(Postavke!E31:K31,Izračunavanja!AC28:AI28,">0") -> 0
C29: =IF(Postavke!C32="","",Postavke!C32) ->  | AC29: =IFERROR(AVERAGEIFS(tblClassScores[Rezultat],tblClassScores[Čas],Izračunavanja!$C29,tblClassScores[Tip],Izračunavanja!AC$5)*Postavke!E32,"") ->  | AD29: =IFERROR(AVERAGEIFS(tblClassScores[Rezultat],tblClassScores[Čas],Izračunavanja!$C29,tblClassScores[Tip],Izračunavanja!AD$5)*Postavke!F32,"") ->  | AE29: =IFERROR(AVERAGEIFS(tblClassScores[Rezultat],tblClassScores[Čas],Izračunavanja!$C29,tblClassScores[Tip],Izračunavanja!AE$5)*Postavke!G32,"") ->  | AF29: =IFERROR(AVERAGEIFS(tblClassScores[Rezultat],tblClassScores[Čas],Izračunavanja!$C29,tblClassScores[Tip],Izračunavanja!AF$5)*Postavke!H32,"") ->  | AG29: =IFERROR(AVERAGEIFS(tblClassScores[Rezultat],tblClassScores[Čas],Izračunavanja!$C29,tblClassScores[Tip],Izračunavanja!AG$5)*Postavke!I32,"") ->  | AH29: =IFERROR(AVERAGEIFS(tblClassScores[Rezultat],tblClassScores[Čas],Izračunavanja!$C29,tblClassScores[Tip],Izračunavanja!AH$5)*Postavke!J32,"") ->  | AI29: =IFERROR(AVERAGEIFS(tblClassScores[Rezultat],tblClassScores[Čas],Izračunavanja!$C29,tblClassScores[Tip],Izračunavanja!AI$5)*Postavke!K32,"") ->  | AJ29: 0 | AK29: =SUMIFS(Postavke!E32:K32,Izračunavanja!AC29:AI29,">0") -> 0
C30: =IF(Postavke!C33="","",Postavke!C33) ->  | AC30: =IFERROR(AVERAGEIFS(tblClassScores[Rezultat],tblClassScores[Čas],Izračunavanja!$C30,tblClassScores[Tip],Izračunavanja!AC$5)*Postavke!E33,"") ->  | AD30: =IFERROR(AVERAGEIFS(tblClassScores[Rezultat],tblClassScores[Čas],Izračunavanja!$C30,tblClassScores[Tip],Izračunavanja!AD$5)*Postavke!F33,"") ->  | AE30: =IFERROR(AVERAGEIFS(tblClassScores[Rezultat],tblClassScores[Čas],Izračunavanja!$C30,tblClassScores[Tip],Izračunavanja!AE$5)*Postavke!G33,"") ->  | AF30: =IFERROR(AVERAGEIFS(tblClassScores[Rezultat],tblClassScores[Čas],Izračunavanja!$C30,tblClassScores[Tip],Izračunavanja!AF$5)*Postavke!H33,"") ->  | AG30: =IFERROR(AVERAGEIFS(tblClassScores[Rezultat],tblClassScores[Čas],Izračunavanja!$C30,tblClassScores[Tip],Izračunavanja!AG$5)*Postavke!I33,"") ->  | AH30: =IFERROR(AVERAGEIFS(tblClassScores[Rezultat],tblClassScores[Čas],Izračunavanja!$C30,tblClassScores[Tip],Izračunavanja!AH$5)*Postavke!J33,"") ->  | AI30: =IFERROR(AVERAGEIFS(tblClassScores[Rezultat],tblClassScores[Čas],Izračunavanja!$C30,tblClassScores[Tip],Izračunavanja!AI$5)*Postavke!K33,"") ->  | AJ30: 0 | AK30: =SUMIFS(Postavke!E33:K33,Izračunavanja!AC30:AI30,">0") -> 0
B33: 1 | C33: ='Praćenje rezultata'!C4&COUNTIF('Praćenje rezultata'!$C$4:C4,'Praćenje rezultata'!C4) -> Savremeni francuski1
B34: 2 | C34: ='Praćenje rezultata'!C5&COUNTIF('Praćenje rezultata'!$C$4:C5,'Praćenje rezultata'!C5) -> Napredno programiranje u Java jeziku1
B35: 3 | C35: ='Praćenje rezultata'!C6&COUNTIF('Praćenje rezultata'!$C$4:C6,'Praćenje rezultata'!C6) -> Španski1
B36: 4 | C36: ='Praćenje rezultata'!C7&COUNTIF('Praćenje rezultata'!$C$4:C7,'Praćenje rezultata'!C7) -> Teorijska fizika1
B37: 5 | C37: ='Praćenje rezultata'!C8&COUNTIF('Praćenje rezultata'!$C$4:C8,'Praćenje rezultata'!C8) -> Savremeni francuski2
B38: 6 | C38: ='Praćenje rezultata'!C9&COUNTIF('Praćenje rezultata'!$C$4:C9,'Praćenje rezultata'!C9) -> Savremeni francuski3
B39: 7 | C39: ='Praćenje rezultata'!C10&COUNTIF('Praćenje rezultata'!$C$4:C10,'Praćenje rezultata'!C10) -> Sastav1
B40: 8 | C40: ='Praćenje rezultata'!C11&COUNTIF('Praćenje rezultata'!$C$4:C11,'Praćenje rezultata'!C11) -> Matematika 11
B41: 9 | C41: ='Praćenje rezultata'!C12&COUNTIF('Praćenje rezultata'!$C$4:C12,'Praćenje rezultata'!C12) -> Matematika 21
B42: 10 | C42: ='Praćenje rezultata'!C13&COUNTIF('Praćenje rezultata'!$C$4:C14,'Praćenje rezultata'!C13) -> Matematika 12
B43: 11 | C43: ='Praćenje rezultata'!C14&COUNTIF('Praćenje rezultata'!$C$4:C14,'Praćenje rezultata'!C14) -> Matematika 22
B44: 12 | C44: ='Praćenje rezultata'!C15&COUNTIF('Praćenje rezultata'!$C$4:C15,'Praćenje rezultata'!C15) -> 0
B45: 13 | C45: ='Praćenje rezultata'!C16&COUNTIF('Praćenje rezultata'!$C$4:C16,'Praćenje rezultata'!C16) -> 0
B46: 14 | C46: ='Praćenje rezultata'!C17&COUNTIF('Praćenje rezultata'!$C$4:C17,'Praćenje rezultata'!C17) -> 0
B47: 15 | C47: ='Praćenje rezultata'!C18&COUNTIF('Praćenje rezultata'!$C$4:C18,'Praćenje rezultata'!C18) -> 0
B48: 16 | C48: ='Praćenje rezultata'!C19&COUNTIF('Praćenje rezultata'!$C$4:C19,'Praćenje rezultata'!C19) -> 0
B49: 17 | C49: ='Praćenje rezultata'!C20&COUNTIF('Praćenje rezultata'!$C$4:C20,'Praćenje rezultata'!C20) -> 0
B50: 18 | C50: ='Praćenje rezultata'!C21&COUNTIF('Praćenje rezultata'!$C$4:C21,'Praćenje rezultata'!C21) -> 0
B51: 19 | C51: ='Praćenje rezultata'!C22&COUNTIF('Praćenje rezultata'!$C$4:C22,'Praćenje rezultata'!C22) -> 0
B52: 20 | C52: ='Praćenje rezultata'!C23&COUNTIF('Praćenje rezultata'!$C$4:C23,'Praćenje rezultata'!C23) -> 0
B53: 21 | C53: ='Praćenje rezultata'!C24&COUNTIF('Praćenje rezultata'!$C$4:C24,'Praćenje rezultata'!C24) -> 0
B54: 22 | C54: ='Praćenje rezultata'!C25&COUNTIF('Praćenje rezultata'!$C$4:C25,'Praćenje rezultata'!C25) -> 0
B55: 23 | C55: ='Praćenje rezultata'!C26&COUNTIF('Praćenje rezultata'!$C$4:C26,'Praćenje rezultata'!C26) -> 0
B56: 24 | C56: ='Praćenje rezultata'!C27&COUNTIF('Praćenje rezultata'!$C$4:C27,'Praćenje rezultata'!C27) -> 0
B57: 25 | C57: ='Praćenje rezultata'!C28&COUNTIF('Praćenje rezultata'!$C$4:C28,'Praćenje rezultata'!C28) -> 0
B58: 26 | C58: ='Praćenje rezultata'!C29&COUNTIF('Praćenje rezultata'!$C$4:C29,'Praćenje rezultata'!C29) -> 0
B59: 27 | C59: ='Praćenje rezultata'!C30&COUNTIF('Praćenje rezultata'!$C$4:C30,'Praćenje rezultata'!C30) -> 0
B60: 28 | C60: ='Praćenje rezultata'!C31&COUNTIF('Praćenje rezultata'!$C$4:C31,'Praćenje rezultata'!C31) -> 0
B61: 29 | C61: ='Praćenje rezultata'!C32&COUNTIF('Praćenje rezultata'!$C$4:C32,'Praćenje rezultata'!C32) -> 0
B62: 30 | C62: ='Praćenje rezultata'!C33&COUNTIF('Praćenje rezultata'!$C$4:C33,'Praćenje rezultata'!C33) -> 0
B63: 31 | C63: ='Praćenje rezultata'!C34&COUNTIF('Praćenje rezultata'!$C$4:C34,'Praćenje rezultata'!C34) -> 0
B64: 32 | C64: ='Praćenje rezultata'!C35&COUNTIF('Praćenje rezultata'!$C$4:C35,'Praćenje rezultata'!C35) -> 0
B65: 33 | C65: ='Praćenje rezultata'!C36&COUNTIF('Praćenje rezultata'!$C$4:C36,'Praćenje rezultata'!C36) -> 0
B66: 34 | C66: ='Praćenje rezultata'!C37&COUNTIF('Praćenje rezultata'!$C$4:C37,'Praćenje rezultata'!C37) -> 0
B67: 35 | C67: ='Praćenje rezultata'!C38&COUNTIF('Praćenje rezultata'!$C$4:C38,'Praćenje rezultata'!C38) -> 0
B68: 36 | C68: ='Praćenje rezultata'!C39&COUNTIF('Praćenje rezultata'!$C$4:C39,'Praćenje rezultata'!C39) -> 0
B69: 37 | C69: ='Praćenje rezultata'!C40&COUNTIF('Praćenje rezultata'!$C$4:C40,'Praćenje rezultata'!C40) -> 0
B70: 38 | C70: ='Praćenje rezultata'!C41&COUNTIF('Praćenje rezultata'!$C$4:C41,'Praćenje rezultata'!C41) -> 0
B71: 39 | C71: ='Praćenje rezultata'!C42&COUNTIF('Praćenje rezultata'!$C$4:C42,'Praćenje rezultata'!C42) -> 0
B72: 40 | C72: ='Praćenje rezultata'!C43&COUNTIF('Praćenje rezultata'!$C$4:C43,'Praćenje rezultata'!C43) -> 0
B73: 41 | C73: ='Praćenje rezultata'!C44&COUNTIF('Praćenje rezultata'!$C$4:C44,'Praćenje rezultata'!C44) -> 0
B74: 42 | C74: ='Praćenje rezultata'!C45&COUNTIF('Praćenje rezultata'!$C$4:C45,'Praćenje rezultata'!C45) -> 0
B75: 43 | C75: ='Praćenje rezultata'!C46&COUNTIF('Praćenje rezultata'!$C$4:C46,'Praćenje rezultata'!C46) -> 0
B76: 44 | C76: ='Praćenje rezultata'!C47&COUNTIF('Praćenje rezultata'!$C$4:C47,'Praćenje rezultata'!C47) -> 0
B77: 45 | C77: ='Praćenje rezultata'!C48&COUNTIF('Praćenje rezultata'!$C$4:C48,'Praćenje rezultata'!C48) -> 0
B78: 46 | C78: ='Praćenje rezultata'!C49&COUNTIF('Praćenje rezultata'!$C$4:C49,'Praćenje rezultata'!C49) -> 0
B79: 47 | C79: ='Praćenje rezultata'!C50&COUNTIF('Praćenje rezultata'!$C$4:C50,'Praćenje rezultata'!C50) -> 0
B80: 48 | C80: ='Praćenje rezultata'!C51&COUNTIF('Praćenje rezultata'!$C$4:C51,'Praćenje rezultata'!C51) -> 0
B81: 49 | C81: ='Praćenje rezultata'!C52&COUNTIF('Praćenje rezultata'!$C$4:C52,'Praćenje rezultata'!C52) -> 0
B82: 50 | C82: ='Praćenje rezultata'!C53&COUNTIF('Praćenje rezultata'!$C$4:C53,'Praćenje rezultata'!C53) -> 0
B83: 51 | C83: ='Praćenje rezultata'!C54&COUNTIF('Praćenje rezultata'!$C$4:C54,'Praćenje rezultata'!C54) -> 0
B84: 52 | C84: ='Praćenje rezultata'!C55&COUNTIF('Praćenje rezultata'!$C$4:C55,'Praćenje rezultata'!C55) -> 0
B85: 53 | C85: ='Praćenje rezultata'!C56&COUNTIF('Praćenje rezultata'!$C$4:C56,'Praćenje rezultata'!C56) -> 0
B86: 54 | C86: ='Praćenje rezultata'!C57&COUNTIF('Praćenje rezultata'!$C$4:C57,'Praćenje rezultata'!C57) -> 0
B87: 55 | C87: ='Praćenje rezultata'!C58&COUNTIF('Praćenje rezultata'!$C$4:C58,'Praćenje rezultata'!C58) -> 0
B88: 56 | C88: ='Praćenje rezultata'!C59&COUNTIF('Praćenje rezultata'!$C$4:C59,'Praćenje rezultata'!C59) -> 0
B89: 57 | C89: ='Praćenje rezultata'!C60&COUNTIF('Praćenje rezultata'!$C$4:C60,'Praćenje rezultata'!C60) -> 0
B90: 58 | C90: ='Praćenje rezultata'!C61&COUNTIF('Praćenje rezultata'!$C$4:C61,'Praćenje rezultata'!C61) -> 0
B91: 59 | C91: ='Praćenje rezultata'!C62&COUNTIF('Praćenje rezultata'!$C$4:C62,'Praćenje rezultata'!C62) -> 0
B92: 60 | C92: ='Praćenje rezultata'!C63&COUNTIF('Praćenje rezultata'!$C$4:C63,'Praćenje rezultata'!C63) -> 0
B93: 61 | C93: ='Praćenje rezultata'!C64&COUNTIF('Praćenje rezultata'!$C$4:C64,'Praćenje rezultata'!C64) -> 0
B94: 62 | C94: ='Praćenje rezultata'!C65&COUNTIF('Praćenje rezultata'!$C$4:C65,'Praćenje rezultata'!C65) -> 0
B95: 63 | C95: ='Praćenje rezultata'!C66&COUNTIF('Praćenje rezultata'!$C$4:C66,'Praćenje rezultata'!C66) -> 0
B96: 64 | C96: ='Praćenje rezultata'!C67&COUNTIF('Praćenje rezultata'!$C$4:C67,'Praćenje rezultata'!C67) -> 0
B97: 65 | C97: ='Praćenje rezultata'!C68&COUNTIF('Praćenje rezultata'!$C$4:C68,'Praćenje rezultata'!C68) -> 0
B98: 66 | C98: ='Praćenje rezultata'!C69&COUNTIF('Praćenje rezultata'!$C$4:C69,'Praćenje rezultata'!C69) -> 0
B99: 67 | C99: ='Praćenje rezultata'!C70&COUNTIF('Praćenje rezultata'!$C$4:C70,'Praćenje rezultata'!C70) -> 0
B100: 68 | C100: ='Praćenje rezultata'!C71&COUNTIF('Praćenje rezultata'!$C$4:C71,'Praćenje rezultata'!C71) -> 0
B101: 69 | C101: ='Praćenje rezultata'!C72&COUNTIF('Praćenje rezultata'!$C$4:C72,'Praćenje rezultata'!C72) -> 0
B102: 70 | C102: ='Praćenje rezultata'!C73&COUNTIF('Praćenje rezultata'!$C$4:C73,'Praćenje rezultata'!C73) -> 0
B103: 71 | C103: ='Praćenje rezultata'!C74&COUNTIF('Praćenje rezultata'!$C$4:C74,'Praćenje rezultata'!C74) -> 0
B104: 72 | C104: ='Praćenje rezultata'!C75&COUNTIF('Praćenje rezultata'!$C$4:C75,'Praćenje rezultata'!C75) -> 0
B105: 73 | C105: ='Praćenje rezultata'!C76&COUNTIF('Praćenje rezultata'!$C$4:C76,'Praćenje rezultata'!C76) -> 0
B106: 74 | C106: ='Praćenje rezultata'!C77&COUNTIF('Praćenje rezultata'!$C$4:C77,'Praćenje rezultata'!C77) -> 0
B107: 75 | C107: ='Praćenje rezultata'!C78&COUNTIF('Praćenje rezultata'!$C$4:C78,'Praćenje rezultata'!C78) -> 0
B108: 76 | C108: ='Praćenje rezultata'!C79&COUNTIF('Praćenje rezultata'!$C$4:C79,'Praćenje rezultata'!C79) -> 0
B109: 77 | C109: ='Praćenje rezultata'!C80&COUNTIF('Praćenje rezultata'!$C$4:C80,'Praćenje rezultata'!C80) -> 0
B110: 78 | C110: ='Praćenje rezultata'!C81&COUNTIF('Praćenje rezultata'!$C$4:C81,'Praćenje rezultata'!C81) -> 0
B111: 79 | C111: ='Praćenje rezultata'!C82&COUNTIF('Praćenje rezultata'!$C$4:C82,'Praćenje rezultata'!C82) -> 0
B112: 80 | C112: ='Praćenje rezultata'!C83&COUNTIF('Praćenje rezultata'!$C$4:C83,'Praćenje rezultata'!C83) -> 0
B113: 81 | C113: ='Praćenje rezultata'!C84&COUNTIF('Praćenje rezultata'!$C$4:C84,'Praćenje rezultata'!C84) -> 0
B114: 82 | C114: ='Praćenje rezultata'!C85&COUNTIF('Praćenje rezultata'!$C$4:C85,'Praćenje rezultata'!C85) -> 0
B115: 83 | C115: ='Praćenje rezultata'!C86&COUNTIF('Praćenje rezultata'!$C$4:C86,'Praćenje rezultata'!C86) -> 0
B116: 84 | C116: ='Praćenje rezultata'!C87&COUNTIF('Praćenje rezultata'!$C$4:C87,'Praćenje rezultata'!C87) -> 0
B117: 85 | C117: ='Praćenje rezultata'!C88&COUNTIF('Praćenje rezultata'!$C$4:C88,'Praćenje rezultata'!C88) -> 0
B118: 86 | C118: ='Praćenje rezultata'!C89&COUNTIF('Praćenje rezultata'!$C$4:C89,'Praćenje rezultata'!C89) -> 0
B119: 87 | C119: ='Praćenje rezultata'!C90&COUNTIF('Praćenje rezultata'!$C$4:C90,'Praćenje rezultata'!C90) -> 0
B120: 88 | C120: ='Praćenje rezultata'!C91&COUNTIF('Praćenje rezultata'!$C$4:C91,'Praćenje rezultata'!C91) -> 0
B121: 89 | C121: ='Praćenje rezultata'!C92&COUNTIF('Praćenje rezultata'!$C$4:C92,'Praćenje rezultata'!C92) -> 0
B122: 90 | C122: ='Praćenje rezultata'!C93&COUNTIF('Praćenje rezultata'!$C$4:C93,'Praćenje rezultata'!C93) -> 0
B123: 91 | C123: ='Praćenje rezultata'!C94&COUNTIF('Praćenje rezultata'!$C$4:C94,'Praćenje rezultata'!C94) -> 0
B124: 92 | C124: ='Praćenje rezultata'!C95&COUNTIF('Praćenje rezultata'!$C$4:C95,'Praćenje rezultata'!C95) -> 0
B125: 93 | C125: ='Praćenje rezultata'!C96&COUNTIF('Praćenje rezultata'!$C$4:C96,'Praćenje rezultata'!C96) -> 0
B126: 94 | C126: ='Praćenje rezultata'!C97&COUNTIF('Praćenje rezultata'!$C$4:C97,'Praćenje rezultata'!C97) -> 0
B127: 95 | C127: ='Praćenje rezultata'!C98&COUNTIF('Praćenje rezultata'!$C$4:C98,'Praćenje rezultata'!C98) -> 0
B128: 96 | C128: ='Praćenje rezultata'!C99&COUNTIF('Praćenje rezultata'!$C$4:C99,'Praćenje rezultata'!C99) -> 0
B129: 97 | C129: ='Praćenje rezultata'!C100&COUNTIF('Praćenje rezultata'!$C$4:C100,'Praćenje rezultata'!C100) -> 0
B130: 98 | C130: ='Praćenje rezultata'!C101&COUNTIF('Praćenje rezultata'!$C$4:C101,'Praćenje rezultata'!C101) -> 0
B131: 99 | C131: ='Praćenje rezultata'!C102&COUNTIF('Praćenje rezultata'!$C$4:C102,'Praćenje rezultata'!C102) -> 0
B132: 100 | C132: ='Praćenje rezultata'!C103&COUNTIF('Praćenje rezultata'!$C$4:C103,'Praćenje rezultata'!C103) -> 0
B133: 101 | C133: ='Praćenje rezultata'!C104&COUNTIF('Praćenje rezultata'!$C$4:C104,'Praćenje rezultata'!C104) -> 0
B134: 102 | C134: ='Praćenje rezultata'!C105&COUNTIF('Praćenje rezultata'!$C$4:C105,'Praćenje rezultata'!C105) -> 0
B135: 103 | C135: ='Praćenje rezultata'!C106&COUNTIF('Praćenje rezultata'!$C$4:C106,'Praćenje rezultata'!C106) -> 0
B136: 104 | C136: ='Praćenje rezultata'!C107&COUNTIF('Praćenje rezultata'!$C$4:C107,'Praćenje rezultata'!C107) -> 0
B137: 105 | C137: ='Praćenje rezultata'!C108&COUNTIF('Praćenje rezultata'!$C$4:C108,'Praćenje rezultata'!C108) -> 0
B138: 106 | C138: ='Praćenje rezultata'!C109&COUNTIF('Praćenje rezultata'!$C$4:C109,'Praćenje rezultata'!C109) -> 0
B139: 107 | C139: ='Praćenje rezultata'!C110&COUNTIF('Praćenje rezultata'!$C$4:C110,'Praćenje rezultata'!C110) -> 0
B140: 108 | C140: ='Praćenje rezultata'!C111&COUNTIF('Praćenje rezultata'!$C$4:C111,'Praćenje rezultata'!C111) -> 0
B141: 109 | C141: ='Praćenje rezultata'!C112&COUNTIF('Praćenje rezultata'!$C$4:C112,'Praćenje rezultata'!C112) -> 0
B142: 110 | C142: ='Praćenje rezultata'!C113&COUNTIF('Praćenje rezultata'!$C$4:C113,'Praćenje rezultata'!C113) -> 0
B143: 111 | C143: ='Praćenje rezultata'!C114&COUNTIF('Praćenje rezultata'!$C$4:C114,'Praćenje rezultata'!C114) -> 0
B144: 112 | C144: ='Praćenje rezultata'!C115&COUNTIF('Praćenje rezultata'!$C$4:C115,'Praćenje rezultata'!C115) -> 0
B145: 113 | C145: ='Praćenje rezultata'!C116&COUNTIF('Praćenje rezultata'!$C$4:C116,'Praćenje rezultata'!C116) -> 0
B146: 114 | C146: ='Praćenje rezultata'!C117&COUNTIF('Praćenje rezultata'!$C$4:C117,'Praćenje rezultata'!C117) -> 0
B147: 115 | C147: ='Praćenje rezultata'!C118&COUNTIF('Praćenje rezultata'!$C$4:C118,'Praćenje rezultata'!C118) -> 0
B148: 116 | C148: ='Praćenje rezultata'!C119&COUNTIF('Praćenje rezultata'!$C$4:C119,'Praćenje rezultata'!C119) -> 0
B149: 117 | C149: ='Praćenje rezultata'!C120&COUNTIF('Praćenje rezultata'!$C$4:C120,'Praćenje rezultata'!C120) -> 0
B150: 118 | C150: ='Praćenje rezultata'!C121&COUNTIF('Praćenje rezultata'!$C$4:C121,'Praćenje rezultata'!C121) -> 0
B151: 119 | C151: ='Praćenje rezultata'!C122&COUNTIF('Praćenje rezultata'!$C$4:C122,'Praćenje rezultata'!C122) -> 0
B152: 120 | C152: ='Praćenje rezultata'!C123&COUNTIF('Praćenje rezultata'!$C$4:C123,'Praćenje rezultata'!C123) -> 0
B153: 121 | C153: ='Praćenje rezultata'!C124&COUNTIF('Praćenje rezultata'!$C$4:C124,'Praćenje rezultata'!C124) -> 0
B154: 122 | C154: ='Praćenje rezultata'!C125&COUNTIF('Praćenje rezultata'!$C$4:C125,'Praćenje rezultata'!C125) -> 0
B155: 123 | C155: ='Praćenje rezultata'!C126&COUNTIF('Praćenje rezultata'!$C$4:C126,'Praćenje rezultata'!C126) -> 0
B156: 124 | C156: ='Praćenje rezultata'!C127&COUNTIF('Praćenje rezultata'!$C$4:C127,'Praćenje rezultata'!C127) -> 0
B157: 125 | C157: ='Praćenje rezultata'!C128&COUNTIF('Praćenje rezultata'!$C$4:C128,'Praćenje rezultata'!C128) -> 0
B158: 126 | C158: ='Praćenje rezultata'!C129&COUNTIF('Praćenje rezultata'!$C$4:C129,'Praćenje rezultata'!C129) -> 0
B159: 127 | C159: ='Praćenje rezultata'!C130&COUNTIF('Praćenje rezultata'!$C$4:C130,'Praćenje rezultata'!C130) -> 0
B160: 128 | C160: ='Praćenje rezultata'!C131&COUNTIF('Praćenje rezultata'!$C$4:C131,'Praćenje rezultata'!C131) -> 0
B161: 129 | C161: ='Praćenje rezultata'!C132&COUNTIF('Praćenje rezultata'!$C$4:C132,'Praćenje rezultata'!C132) -> 0
B162: 130 | C162: ='Praćenje rezultata'!C133&COUNTIF('Praćenje rezultata'!$C$4:C133,'Praćenje rezultata'!C133) -> 0
B163: 131 | C163: ='Praćenje rezultata'!C134&COUNTIF('Praćenje rezultata'!$C$4:C134,'Praćenje rezultata'!C134) -> 0
B164: 132 | C164: ='Praćenje rezultata'!C135&COUNTIF('Praćenje rezultata'!$C$4:C135,'Praćenje rezultata'!C135) -> 0
B165: 133 | C165: ='Praćenje rezultata'!C136&COUNTIF('Praćenje rezultata'!$C$4:C136,'Praćenje rezultata'!C136) -> 0
B166: 134 | C166: ='Praćenje rezultata'!C137&COUNTIF('Praćenje rezultata'!$C$4:C137,'Praćenje rezultata'!C137) -> 0
B167: 135 | C167: ='Praćenje rezultata'!C138&COUNTIF('Praćenje rezultata'!$C$4:C138,'Praćenje rezultata'!C138) -> 0
B168: 136 | C168: ='Praćenje rezultata'!C139&COUNTIF('Praćenje rezultata'!$C$4:C139,'Praćenje rezultata'!C139) -> 0
B169: 137 | C169: ='Praćenje rezultata'!C140&COUNTIF('Praćenje rezultata'!$C$4:C140,'Praćenje rezultata'!C140) -> 0
B170: 138 | C170: ='Praćenje rezultata'!C141&COUNTIF('Praćenje rezultata'!$C$4:C141,'Praćenje rezultata'!C141) -> 0
B171: 139 | C171: ='Praćenje rezultata'!C142&COUNTIF('Praćenje rezultata'!$C$4:C142,'Praćenje rezultata'!C142) -> 0
B172: 140 | C172: ='Praćenje rezultata'!C143&COUNTIF('Praćenje rezultata'!$C$4:C143,'Praćenje rezultata'!C143) -> 0
B173: 141 | C173: ='Praćenje rezultata'!C144&COUNTIF('Praćenje rezultata'!$C$4:C144,'Praćenje rezultata'!C144) -> 0
B174: 142 | C174: ='Praćenje rezultata'!C145&COUNTIF('Praćenje rezultata'!$C$4:C145,'Praćenje rezultata'!C145) -> 0
B175: 143 | C175: ='Praćenje rezultata'!C146&COUNTIF('Praćenje rezultata'!$C$4:C146,'Praćenje rezultata'!C146) -> 0
B176: 144 | C176: ='Praćenje rezultata'!C147&COUNTIF('Praćenje rezultata'!$C$4:C147,'Praćenje rezultata'!C147) -> 0
B177: 145 | C177: ='Praćenje rezultata'!C148&COUNTIF('Praćenje rezultata'!$C$4:C148,'Praćenje rezultata'!C148) -> 0
B178: 146 | C178: ='Praćenje rezultata'!C149&COUNTIF('Praćenje rezultata'!$C$4:C149,'Praćenje rezultata'!C149) -> 0
B179: 147 | C179: ='Praćenje rezultata'!C150&COUNTIF('Praćenje rezultata'!$C$4:C150,'Praćenje rezultata'!C150) -> 0
B180: 148 | C180: ='Praćenje rezultata'!C151&COUNTIF('Praćenje rezultata'!$C$4:C151,'Praćenje rezultata'!C151) -> 0
B181: 149 | C181: ='Praćenje rezultata'!C152&COUNTIF('Praćenje rezultata'!$C$4:C152,'Praćenje rezultata'!C152) -> 0
B182: 150 | C182: ='Praćenje rezultata'!C153&COUNTIF('Praćenje rezultata'!$C$4:C153,'Praćenje rezultata'!C153) -> 0
B183: 151 | C183: ='Praćenje rezultata'!C154&COUNTIF('Praćenje rezultata'!$C$4:C154,'Praćenje rezultata'!C154) -> 0
B184: 152 | C184: ='Praćenje rezultata'!C155&COUNTIF('Praćenje rezultata'!$C$4:C155,'Praćenje rezultata'!C155) -> 0
B185: 153 | C185: ='Praćenje rezultata'!C156&COUNTIF('Praćenje rezultata'!$C$4:C156,'Praćenje rezultata'!C156) -> 0
B186: 154 | C186: ='Praćenje rezultata'!C157&COUNTIF('Praćenje rezultata'!$C$4:C157,'Praćenje rezultata'!C157) -> 0
B187: 155 | C187: ='Praćenje rezultata'!C158&COUNTIF('Praćenje rezultata'!$C$4:C158,'Praćenje rezultata'!C158) -> 0
B188: 156 | C188: ='Praćenje rezultata'!C159&COUNTIF('Praćenje rezultata'!$C$4:C159,'Praćenje rezultata'!C159) -> 0
B189: 157 | C189: ='Praćenje rezultata'!C160&COUNTIF('Praćenje rezultata'!$C$4:C160,'Praćenje rezultata'!C160) -> 0
B190: 158 | C190: ='Praćenje rezultata'!C161&COUNTIF('Praćenje rezultata'!$C$4:C161,'Praćenje rezultata'!C161) -> 0
B191: 159 | C191: ='Praćenje rezultata'!C162&COUNTIF('Praćenje rezultata'!$C$4:C162,'Praćenje rezultata'!C162) -> 0
B192: 160 | C192: ='Praćenje rezultata'!C163&COUNTIF('Praćenje rezultata'!$C$4:C163,'Praćenje rezultata'!C163) -> 0
B193: 161 | C193: ='Praćenje rezultata'!C164&COUNTIF('Praćenje rezultata'!$C$4:C164,'Praćenje rezultata'!C164) -> 0
B194: 162 | C194: ='Praćenje rezultata'!C165&COUNTIF('Praćenje rezultata'!$C$4:C165,'Praćenje rezultata'!C165) -> 0
B195: 163 | C195: ='Praćenje rezultata'!C166&COUNTIF('Praćenje rezultata'!$C$4:C166,'Praćenje rezultata'!C166) -> 0
B196: 164 | C196: ='Praćenje rezultata'!C167&COUNTIF('Praćenje rezultata'!$C$4:C167,'Praćenje rezultata'!C167) -> 0
B197: 165 | C197: ='Praćenje rezultata'!C168&COUNTIF('Praćenje rezultata'!$C$4:C168,'Praćenje rezultata'!C168) -> 0
B198: 166 | C198: ='Praćenje rezultata'!C169&COUNTIF('Praćenje rezultata'!$C$4:C169,'Praćenje rezultata'!C169) -> 0
B199: 167 | C199: ='Praćenje rezultata'!C170&COUNTIF('Praćenje rezultata'!$C$4:C170,'Praćenje rezultata'!C170) -> 0
B200: 168 | C200: ='Praćenje rezultata'!C171&COUNTIF('Praćenje rezultata'!$C$4:C171,'Praćenje rezultata'!C171) -> 0
B201: 169 | C201: ='Praćenje rezultata'!C172&COUNTIF('Praćenje rezultata'!$C$4:C172,'Praćenje rezultata'!C172) -> 0
B202: 170 | C202: ='Praćenje rezultata'!C173&COUNTIF('Praćenje rezultata'!$C$4:C173,'Praćenje rezultata'!C173) -> 0
B203: 171 | C203: ='Praćenje rezultata'!C174&COUNTIF('Praćenje rezultata'!$C$4:C174,'Praćenje rezultata'!C174) -> 0
... 454 more rows
